Workbook

Sheet 机器人流程（与上位）
A1: 流程接收数据结构 | G1: 流程发送数据结构
B4: DB编号： | C4: 110 | D4: 上位机->1号机器人 | E4: 目前没有1号机器人 | H4: DB编号： | I4: 111 | J4: 1号机器人->上位机 | K4: 目前没有1号机器人
C5: 120 | D5: 上位机->2号机器人 | I5: 121 | J5: 2号机器人->上位机
C6: 上位机 → PLC | I6: PLC → 上位机
B7: 公共信号 | H7: 公共信号
B8: 详细地址 | C8: 数据类型 | D8: 注释 | E8: 说明 | H8: 详细地址 | I8: 数据类型 | J8: 注释 | K8: 说明
A9: Byte 0~275 | B9: BD块的ID | E9: 调度数据 | G9: Byte 0~275 | H9: BD块的ID | K9: 调度数据
A10: 50字节 | B10: 0~49 | C10: BYTE[50] | D10: 任务唯一码 | E10: 任务唯一码 | G10: 50字节 | H10: 0~49 | I10: BYTE[50] | J10: 任务唯一码 | K10: 结束标志，无论正常或者异常
A11: 20字节 | B11: 50 | C11: BYTE | D11: 预留 | E11: 默认发0 | G11: 20字节 | H11: 50 | I11: BYTE | J11: 流程状态 | K11: 1=正常，2=可恢复型故障，3=不可恢复故障
B12: 51~69 | C12: BYTE[19] | D12: 预留 | H12: 51~69 | I12: BYTE[19] | J12: 预留
A13: Byte 277~614 | E13: 位置及车身数据 | G13: Byte 277~614 | K13: 位置及车身数据
A14: 50字节 | B14: 70~73 | C14: REAL | D14: X轴位置 | G14: 50字节 | H14: 70~73 | I14: REAL | J14: X轴位置
B15: 74~77 | C15: REAL | D15: Y轴位置 | H15: 74~77 | I15: REAL | J15: Y轴位置
B16: 78~81 | C16: REAL | D16: B轴位置 | E16: 旋转角度 | H16: 78~81 | I16: REAL | J16: B轴位置 | K16: 旋转角度
B17: 82~85 | C17: REAL | D17: Z轴位置 | H17: 82~85 | I17: REAL | J17: Z轴位置
B18: 86 | C18: BYTE | D18: C轴功能代码 | E18: 0=无动作，1=夹紧，2=松开 | H18: 86 | I18: BYTE | J18: C轴功能代码 | K18: 0=无动作，1=夹紧，2=松开
B19: 87~89 | C19: BYTE[3] | D19: 预留 | H19: 87~89 | I19: BYTE[3]
B20: 90~93 | C20: REAL | D20: 车辆轴距 | H20: 90~93 | I20: REAL | J20: 车辆轴距
B21: 94~97 | C21: REAL | D21: D1轴位置 | H21: 94~97 | I21: REAL | J21: D1轴位置
B22: 98~101 | C22: REAL | D22: D2轴位置 | H22: 98~101 | I22: REAL | J22: D2轴位置
B23: 102~119 | C23: BYTE[18] | D23: 预留 | H23: 102~119 | I23: BYTE[18] | J23: 预留
A24: 288字节 | C24: STRING | D24: 预留 | G24: 288字节 | I24: STRING | J24: 预留 | K24: 错误描述（可以不发）
C25: BYTE[32] | D25: 预留 | I25: BYTE[32] | J25: 预留 | K25: 错误码（可以不发）

Sheet 机器人状态（与上位）
C1: 状态接收数据结构 | I1: 状态发送数据结构
B4: DB编号： | C4: 112 | D4: 上位机->1号机器人 | E4: 目前没有1号机器人 | H4: DB编号： | I4: 113 | J4: 1号机器人->上位机 | K4: 目前没有1号机器人
C5: 122 | D5: 上位机->2号机器人 | I5: 123 | J5: 2号机器人->上位机
C6: 上位机 → PLC | I6: PLC→ 上位机
B7: 公共信号 | H7: 公共信号
B8: 详细地址 | C8: 数据类型 | D8: 注释 | E8: 说明 | H8: 详细地址 | I8: 数据类型 | J8: 注释 | K8: 说明
A9: Byte 0 | E9: 公用数据 | G9: Byte 0 | K9: 公用数据
B10: DBxxx+DBB0 | C10: BYTE | D10: 心跳位 | E10: 0-255循环 | H10: DBxxx+DBB0 | I10: BYTE | J10: 心跳位 | K10: 0-255循环
G11: Byte 1-99 | K11: 机器人状态信息
H12: 1.0 | I12: BOOL | J12: 机器人故障 | K12: 0=有故障
H13: 1.1 | I13: BOOL | J13: 机器人急停信号 | K13: 0=急停触发，1=正常
H14: 1.2 | I14: BOOL | J14: 机器人处于安全位置 | K14: 1=处于安全位置
H15: 1.3 | I15: BOOL | J15: 机器人防撞报警 | K15: 0=防撞触发，1=未触发
H16: 1.4 | I16: BOOL | J16: 预留
H17: 1.5 | I17: BOOL | J17: 预留
H18: 1.6 | I18: BOOL | J18: 预留
H19: 1.7 | I19: BOOL | J19: 预留
H20: 2 | I20: BYTE | J20: 机器人空闲 | K20: 0=无状态，1=工作中,2=空闲
H21: 3 | I21: BYTE | J21: 机器人上有车 | K21: 0=无状态，1=有车，2=没车
H22: 4 | I22: BYTE | J22: 预留
H23: 5 | I23: BYTE | J23: 预留
H24: 6-37 | I24: BYTE[32] | J24: 预留
H25: 38~41 | I25: REAL | J25: 机器人X轴位置坐标
H26: 42~45 | I26: REAL | J26: 机器人Y轴位置坐标
H27: 46~49 | I27: REAL | J27: 机器人B轴位置坐标
H28: 50~53 | I28: REAL | J28: 机器人Z轴位置坐标
H29: 54~57 | I29: REAL | J29: 机器人D1轴位置坐标
H30: 58~61 | I30: REAL | J30: 机器人D2轴位置坐标
H31: 62 | I31: BYTE | J31: 机器人C1轴位置 | K31: 1=夹紧位置，2=松开位置
H32: 63 | I32: BYTE | J32: 机器人C2轴位置 | K32: 1=夹紧位置，2=松开位置
H33: 64 | I33: BYTE | J33: 机器人C3轴位置 | K33: 1=夹紧位置，2=松开位置
H34: 65 | I34: BYTE | J34: 机器人C4轴位置 | K34: 1=夹紧位置，2=松开位置
H35: 66-97 | I35: BYTE[32] | J35: 预留
H36: 98 | I36: BYTE | J36: 预留
H37: 99 | I37: BYTE | J37: 预留
G38: Byte 100-711 | K38: PLC故障信息
H39: 100-149 | I39: BYTE[50] | J39: 机器人报警信息位 | K39: 根据实际情况编写故障列表
H40: 150-199 | I40: BYTE[50] | J40: 机器人警告信息位 | K40: 根据实际情况编写警告列表
H41: 200-455 | I41: STRING | J41: 机器人报警状态
B45: 注意:

Sheet 搬运器流程（与上位机）
A1: 流程接收数据结构 | G1: 流程发送数据结构
B2: DB编号： | C2: 200 | D2: 上位机->0号搬运器 | H2: DB编号： | I2: 201 | J2: 0号搬运器->上位机
C3: 270 | D3: 上位机->7号搬运器 | I3: 271 | J3: 7号搬运器->上位机
C4: 230 | D4: 上位机->3号搬运器 | I4: 231 | J4: 3号搬运器->上位机
C5: 上位机 → PLC | I5: PLC → 上位机
B6: 公共信号 | H6: 公共信号
B7: 详细地址 | C7: 数据类型 | D7: 注释 | E7: 说明 | H7: 详细地址 | I7: 数据类型 | J7: 注释 | K7: 说明
A8: Byte 0~275 | B8: BD块的ID | E8: 调度数据 | G8: Byte 0~275 | H8: BD块的ID | K8: 调度数据
A9: 50字节 | B9: 0~49 | C9: BYTE[50] | D9: 任务唯一码 | E9: 任务唯一码 | G9: 50字节 | H9: 0~49 | I9: BYTE[50] | J9: 任务唯一码 | K9: 结束标志，无论正常或者异常
A10: 22字节 | B10: 50 | C10: BYTE | D10: 预留 | E10: 默认发0 | G10: 22字节 | H10: 50 | I10: BYTE | J10: 流程状态 | K10: 1=正常，2=可恢复型故障，3=不可恢复故障
B11: 51~71 | C11: BYTE[21] | D11: 预留 | H11: 51~71 | I11: BYTE[21] | J11: 预留
A12: Byte 278~617 | E12: 位置及车身数据 | G12: Byte 278~617 | K12: 位置及车身数据
A13: 52字节 | B13: 72~75 | C13: REAL | D13: X轴位置 | E13: 中跑车的X坐标 | G13: 52字节 | H13: 72~75 | I13: REAL | J13: X轴位置 | K13: 中跑车的X坐标
B14: 76~79 | C14: REAL | D14: Y轴位置 | E14: 小跑车的Y坐标 | H14: 76~79 | I14: REAL | J14: Y轴位置 | K14: 小跑车的Y坐标
B15: 80~83 | C15: REAL | D15: Z轴位置 | E15: 升降机的Z坐标 （3号搬运器没有电梯，那就一直是3楼的固定坐标） | H15: 80~83 | I15: REAL | J15: Z轴位置 | K15: 升降机的Z坐标 （3号搬运器没有电梯，那就一直是3楼的固定坐标）
B16: 84~87 | C16: REAL | D16: Y1轴位置 | E16: 小跑车的前轮Y1坐标 | H16: 84~87 | I16: REAL | J16: Y1轴位置 | K16: 小跑车的前轮Y1坐标
B17: 88~91 | C17: REAL | D17: Y2轴位置 | E17: 小跑车的后轮Y2坐标 | H17: 88~91 | I17: REAL | J17: Y2轴位置 | K17: 小跑车的后轮Y2坐标
B18: 92 | C18: BYTE | D18: 小跑车夹车杆 | E18: 0=无动作，1=夹紧，2=松开 | H18: 92 | I18: BYTE | J18: 小跑车夹车杆 | K18: 0=无动作，1=夹紧，2=松开
B19: 93 | C19: BYTE | D19: 电梯与X轴的横向轨道对接 | E19: 0=无动作， 1=进行对接，之后中跑车可以x轴移动，电梯不能Z轴移动 2=松开对接，之后中跑车固定在电梯上不能X轴移动，电梯可以Z轴移动 | H19: 93 | I19: BYTE | J19: 电梯与X轴的横向轨道对接 | K19: 0=无动作， 1=进行对接，之后中跑车可以x轴移动，电梯不能Z轴移动 2=松开对接，之后中跑车固定在电梯上不能X轴移动，电梯可以Z轴移动
B20: 94 | C20: BYTE | D20: 小跑车与Y轴的纵向轨道对接 | E20: 目前没有，暂时不用 | H20: 94 | I20: BYTE | J20: 小跑车与Y轴的纵向轨道对接 | K20: 目前没有，暂时不用
B21: 95 | C21: BYTE | D21: 预留 | H21: 95 | I21: BYTE | J21: 预留
B22: 96~99 | C22: int32 | D22: 中跑车所在的车位编号 | E22: 目前没有，暂时不用 | H22: 96~99 | I22: int32 | J22: 中跑车所在的车位编号 | K22: 目前没有，暂时不用
B23: 100~103 | C23: int32 | D23: 电梯所在的楼层 | E23: 目前没有，暂时不用 | H23: 100~103 | I23: int32 | J23: 电梯所在的楼层 | K23: 目前没有，暂时不用
B24: 104~107 | C24: REAL | D24: 小跑车的轮距 | E24: 目前没有，暂时不用 | H24: 104~107 | I24: REAL | J24: 小跑车的轮距 | K24: 目前没有，暂时不用
B25: 108 | C25: BYTE | D25: 小跑车的动作 | E25: 0=无动作，1=存车，2=取车 非0时,小跑车执行长流程,此时搬运器不响应y,y1,y2和夹车杆的动作 | H25: 108 | I25: BYTE | J25: 小跑车的动作 | K25: 0=无动作，1=存车，2=取车 非0时,小跑车执行长流程,此时搬运器不响应y,y1,y2和夹车杆的动作
B26: 109~203 | C26: BYTE[15] | D26: 预留 | H26: 109~203 | I26: BYTE[15] | J26: 预留
A27: 288字节 | C27: STRING | D27: 预留 | G27: 288字节 | I27: STRING | J27: 预留 | K27: 错误描述（可以不发）
C28: BYTE[32] | D28: 预留 | I28: BYTE[32] | J28: 预留 | K28: 错误码（可以不发）

Sheet 搬运器状态（与上位机）
C1: 状态接收数据结构 | I1: 状态发送数据结构
B2: DB编号： | C2: 202 | D2: 上位机->0号搬运器 | H2: DB编号： | I2: 203 | J2: 0号搬运器->上位机
C3: 272 | D3: 上位机->7号搬运器 | I3: 273 | J3: 7号搬运器->上位机
C4: 232 | D4: 上位机->3号搬运器 | I4: 233 | J4: 3号搬运器->上位机
C5: 上位机 → PLC | I5: PLC→ 上位机
B6: 公共信号 | H6: 公共信号
B7: 详细地址 | C7: 数据类型 | D7: 注释 | E7: 说明 | H7: 详细地址 | I7: 数据类型 | J7: 注释 | K7: 说明
E8: 公用数据 | K8: 公用数据
B9: DBxxx+DBB0 | C9: BYTE | D9: 心跳位 | E9: 0-255循环 | H9: DBxxx+DBB0 | I9: BYTE | J9: 心跳位 | K9: 0-255循环
G10: Byte 1-99 | K10: 机器人状态信息
H11: 1.0 | I11: BOOL | J11: 搬运器故障 | K11: 0=有故障
H12: 1.1 | I12: BOOL | J12: 搬运器急停信号 | K12: 0=急停触发，1=正常
H13: 1.2 | I13: BOOL | J13: 搬运器处于安全位置 | K13: 1=处于安全位置
H14: 1.3 | I14: BOOL | J14: 搬运器防撞报警 | K14: 0=防撞触发，1=未触发
H15: 1.4 | I15: BOOL | J15: 预留
H16: 1.5 | I16: BOOL | J16: 预留
H17: 1.6 | I17: BOOL | J17: 预留
H18: 1.7 | I18: BOOL | J18: 预留
H19: 2 | I19: BYTE | J19: 搬运器空闲 | K19: 0=无状态，1=工作中,2=空闲
H20: 3 | I20: BYTE | J20: 搬运器上有车 | K20: 0=无状态，1=有车，2=没车
H21: 4 | I21: BYTE | J21: 预留
H22: 5 | I22: BYTE | J22: 预留
H23: 6-37 | I23: BYTE[32] | J23: 预留
H24: 38~41 | I24: REAL | J24: 搬运器X轴位置坐标
H25: 42~45 | I25: REAL | J25: 搬运器Y轴位置坐标
H26: 46~49 | I26: REAL | J26: 搬运器Z轴位置坐标
H27: 50~53 | I27: REAL | J27: 搬运器Y1轴位置坐标
H28: 54~57 | I28: REAL | J28: 搬运器Y2轴位置坐标
H29: 58 | I29: BYTE | J29: 小跑车夹杆C1轴位置 | K29: 1=夹紧位置，2=松开位置
H30: 59 | I30: BYTE | J30: 小跑车夹杆C2轴位置 | K30: 1=夹紧位置，2=松开位置
H31: 60 | I31: BYTE | J31: 小跑车Y轴位置 | K31: 1=出发到位，2=返回到位
H32: 61 | I32: BYTE | J32: 升降机平层1D1轴位置 | K32: 1=伸出到位，2=收回到位
H33: 62 | I33: BYTE | J33: 升降机平层2D2轴位置 | K33: 1=伸出到位，2=收回到位
H34: 63-101 | I34: BYTE[39] | J34: 预留
G35: Byte 100-711 | K35: PLC故障信息
H36: 102-151 | I36: BYTE[50] | J36: 搬运器报警信息位 | K36: 根据实际情况编写故障列表
H37: 150-201 | I37: BYTE[50] | J37: 搬运器警告信息位 | K37: 根据实际情况编写警告列表
H38: 202-713 | I38: WSTRING | J38: 搬运器报警状态

Sheet 门控系统流程（与上位机）
C1: 流程接收数据结构 | I1: 流程发送数据结构
B2: DB编号： | C2: 300 | D2: 上位机->0号出入口 | E2: 目前没有 | H2: DB编号： | I2: 301 | J2: 0号出入口->上位机 | K2: 目前没有
C3: 310 | D3: 上位机->1号出入口 | I3: 311 | J3: 1号出入口->上位机
C4: 320 | D4: 上位机->2号出入口 | I4: 321 | J4: 2号出入口->上位机
C5: 330 | D5: 上位机->3号出入口 | I5: 331 | J5: 3号出入口->上位机
C6: 340 | D6: 上位机->4号出入口 | I6: 341 | J6: 4号出入口->上位机
C7: 350 | D7: 上位机->5号出入口 | I7: 351 | J7: 5号出入口->上位机
C8: 360 | D8: 上位机->6号出入口 | I8: 361 | J8: 6号出入口->上位机
C9: 370 | D9: 上位机->7号出入口 | I9: 371 | J9: 7号出入口->上位机
C10: 上位机 → PLC | I10: PLC → 上位机
B11: 公共信号 | H11: 公共信号
B12: 详细地址 | C12: 数据类型 | D12: 注释 | E12: 说明 | H12: 详细地址 | I12: 数据类型 | J12: 注释 | K12: 说明
A13: Byte 0~275 | B13: BD块的ID | E13: 调度数据 | G13: Byte 0~275 | H13: BD块的ID | K13: 调度数据
A14: 50字节 | B14: 0~49 | C14: BYTE[50] | D14: 任务唯一码 | E14: 任务唯一码 | G14: 50字节 | H14: 0~49 | I14: BYTE[50] | J14: 任务唯一码 | K14: 结束标志，无论正常或者异常
A15: 20字节 | B15: 50 | C15: BYTE | D15: 预留 | E15: 默认发0 | G15: 20字节 | H15: 50 | I15: BYTE | J15: 流程状态 | K15: 1=正常，2=可恢复型故障，3=不可恢复故障
B16: 51~69 | C16: BYTE[19] | D16: 预留 | H16: 51~69 | I16: BYTE[19] | J16: 预留
A17: Byte 277~614 | E17: 位置及车身数据 | G17: Byte 277~614 | K17: 位置及车身数据
A18: 50字节 | B18: 70 | C18: BYTE | D18: 内侧门开关命令 | E18: 0=无动作，1=开，2=关 | G18: 50字节 | H18: 70 | I18: BYTE | J18: 内侧门开关命令 | K18: 0=无动作，1=开，2=关
B19: 71 | C19: BYTE | D19: 外侧门开关命令 | E19: 0=无动作，1=开，2=关 | H19: 71 | I19: BYTE | J19: 外侧门开关命令 | K19: 0=无动作，1=开，2=关
B20: 72 | C20: BYTE | D20: 转台旋转角度枚举 | E20: 0=无动作，1=对接小跑车， 2=对接外门出口 | H20: 72 | I20: BYTE | J20: 转台旋转角度枚举 | K20: 0=无动作，1=对接小跑车， 2=对接外门出口
B21: 73~119 | C21: BYTE[47] | D21: 预留 | H21: 73~119 | I21: BYTE[47] | J21: 预留
A22: 288字节 | C22: STRING | D22: 预留 | G22: 288字节 | I22: STRING | J22: 预留 | K22: 错误描述（可以不发）
C23: BYTE[32] | D23: 预留 | I23: BYTE[32] | J23: 预留 | K23: 错误码（可以不发）

Sheet 门控系统状态（与上位机）
C1: 状态接收数据结构 | I1: 状态发送数据结构
B2: DB编号： | C2: 302 | D2: 上位机->0号出入口 | E2: 目前没有 | H2: DB编号： | I2: 303 | J2: 0号出入口->上位机 | K2: 目前没有
C3: 312 | D3: 上位机->1号出入口 | I3: 313 | J3: 1号出入口->上位机
C4: 322 | D4: 上位机->2号出入口 | I4: 323 | J4: 2号出入口->上位机
C5: 332 | D5: 上位机->3号出入口 | I5: 333 | J5: 3号出入口->上位机
C6: 342 | D6: 上位机->4号出入口 | I6: 343 | J6: 4号出入口->上位机
C7: 352 | D7: 上位机->5号出入口 | I7: 353 | J7: 5号出入口->上位机
C8: 362 | D8: 上位机->6号出入口 | I8: 363 | J8: 6号出入口->上位机
C9: 372 | D9: 上位机->7号出入口 | I9: 373 | J9: 7号出入口->上位机
C10: 上位机 → PLC | I10: PLC→ 上位机
B11: 公共信号 | H11: 公共信号
B12: 详细地址 | C12: 数据类型 | D12: 注释 | E12: 说明 | H12: 详细地址 | I12: 数据类型 | J12: 注释 | K12: 说明
E13: 公用数据 | K13: 公用数据
B14: DBxxx+DBB0 | C14: BYTE | D14: 心跳位 | E14: 0-255循环 | H14: DBxxx+DBB0 | I14: BYTE | J14: 心跳位 | K14: 0-255循环
E15: 状态信息 | G15: Byte 1~608 | K15: 状态信息
H16: 1.0 | I16: BOOL | J16: 门控故障 | K16: 1=故障
H17: 1.1 | I17: BOOL | J17: 门控系统急停信号 | K17: 0=急停触发，1=正常
H18: 1.2 | I18: BOOL | J18: 预留
H19: 1.3 | I19: BOOL | J19: 预留
H20: 1.4 | I20: BOOL | J20: 预留
H21: 1.5 | I21: BOOL | J21: 预留
H22: 1.6 | I22: BOOL | J22: 预留
H23: 1.7 | I23: BOOL | J23: 预留
H24: 2.0 | I24: BOOL | J24: 门外地感 | K24: 0=无车，1=有车
H25: 2.1 | I25: BOOL | J25: 门内地感 | K25: 0=无车，1=有车
H26: 2.2 | I26: BOOL | J26: 前超界 | K26: 0=未超界，1=超界
H27: 2.3 | I27: BOOL | J27: 后超界 | K27: 0=未超界，1=超界
H28: 2.4 | I28: BOOL | J28: 车辆超高 | K28: 0=未超高，1=超高
H29: 2.5 | I29: BOOL | J29: 车子离开检测 | K29: 下降沿代表车子离开
H30: 2.6 | I30: BOOL | J30: 内门开到位 | K30: 1=开到位
H31: 2.7 | I31: BOOL | J31: 内门关到位 | K31: 1=关到位
H32: 3.0 | I32: BOOL | J32: 外门开到位 | K32: 1=开到位
H33: 3.1 | I33: BOOL | J33: 外门关到位 | K33: 1=关到位
H34: 3.2 | I34: BOOL | J34: 转台有车检测 | K34: 0=无车，1=有车
H35: 3.3 | I35: BOOL | J35: 预留
H36: 3.4 | I36: BOOL | J36: 预留
H37: 3.5 | I37: BOOL | J37: 门状态空闲 | K37: 0=空闲，1=工作中
H38: 3.6 | I38: BOOL | J38: 预留
H39: 3.7 | I39: BOOL | J39: 预留
H40: 4-35 | I40: BYTE[32] | J40: 预留
H41: 36 | I41: BYTE | J41: 转台位置 | K41: 0=无动作，1=对接小跑车， 2=对接外门出口
H42: 37 | I42: BYTE | J42: 预留
K43: PLC故障信息
H44: 38-87 | I44: BYTE[50] | J44: 机器人报警信息位 | K44: 根据实际情况编写故障列表
H45: 88-137 | I45: BYTE[50] | J45: 机器人警告信息位 | K45: 根据实际情况编写警告列表
H46: 138-649 | I46: WSTRING | J46: 机器人报警状态
B50: 注意:

Sheet Sheet4
F8: 0 | H8: 255
F9: 256
F10: 257 | H10: 276
F12: 277 | G12: =F12-1 -> 276 | H12: 280 | I12: =H12-1 -> 279 | Q12: 276~279 | U12: 30 | V12: =U12-29 -> 1
F13: 281 | G13: =F13-1 -> 280 | H13: 284 | I13: =H13-1 -> 283 | Q13: 280~283 | U13: 30.1 | V13: =U13-29 -> 1.1
F14: 285 | G14: =F14-1 -> 284 | H14: 288 | I14: =H14-1 -> 287 | Q14: 284~287 | U14: 30.2 | V14: =U14-29 -> 1.2
F15: 289 | G15: =F15-1 -> 288 | H15: 292 | I15: =H15-1 -> 291 | Q15: 288~291 | U15: 30.3 | V15: =U15-29 -> 1.3
F16: 293 | G16: =F16-1 -> 292 | H16: 296 | I16: =H16-1 -> 295 | Q16: 292~295 | U16: 30.4 | V16: =U16-29 -> 1.4
F17: 297 | G17: =F17-1 -> 296 | I17: =H17-1 -> -1 | Q17: 296 | U17: 30.5 | V17: =U17-29 -> 1.5
F18: 298 | G18: =F18-1 -> 297 | I18: =H18-1 -> -1 | Q18: 297 | U18: 30.6 | V18: =U18-29 -> 1.6
F19: 299 | G19: =F19-1 -> 298 | I19: =H19-1 -> -1 | Q19: 298 | U19: 30.7 | V19: =U19-29 -> 1.7
F20: 300 | G20: =F20-1 -> 299 | H20: 303 | I20: =H20-1 -> 302 | Q20: 299~302 | U20: 31 | V20: =U20-29 -> 2
F21: 304 | G21: =F21-1 -> 303 | H21: 307 | I21: =H21-1 -> 306 | Q21: 303~306 | U21: 31.1 | V21: =U21-29 -> 2.1
F22: 308 | G22: =F22-1 -> 307 | H22: 311 | I22: =H22-1 -> 310 | Q22: 307~310 | U22: 31.2 | V22: =U22-29 -> 2.2
F23: 312 | G23: =F23-1 -> 311 | H23: 326 | I23: =H23-1 -> 325 | Q23: 311~325 | U23: 31.3 | V23: =U23-29 -> 2.3
F24: 327 | G24: =F24-1 -> 326 | H24: 582 | I24: =H24-1 -> 581 | Q24: 326~581 | U24: 31.4 | V24: =U24-29 -> 2.4
F25: 583 | G25: =F25-1 -> 582 | H25: 614 | I25: =H25-1 -> 613 | Q25: 582~613 | U25: 31.5 | V25: =U25-29 -> 2.5
U26: 31.6 | V26: =U26-29 -> 2.6
U27: 31.7 | V27: =U27-29 -> 2.7
U28: 32 | V28: =U28-29 -> 3
U29: 40 | V29: =U29-29 -> 11
U30: 48 | V30: =U30-29 -> 19
U31: 56 | V31: =U31-29 -> 27
U32: 64 | V32: =U32-29 -> 35
V33: =U33-29 -> -29
V34: =U34-29 -> -29
V35: =U35-29 -> -29
V36: =U36-29 -> -29
